fUSD/lending_fUSD_20240409
["ID","MTS","AMOUNT","RATE_DAILY","PERIOD"]
[321991050,1712675444335,-5265.93,0.00019178,2]
[321991053,1712675444345,-2322.11,0.00019178,2]
[321991054,1712675444355,-500.0,0.00019178,2]
[321991057,1712675444364,-500.0,0.00019178,2]
[321991059,1712675444374,-500.0,0.00019178,2]
[321991061,1712675444383,-1108.14,0.00019178,2]
[321991063,1712675444392,-1341.58,0.00019178,2]
[321991065,1712675444402,-500.0,0.00019178,2]
[321991067,1712675444410,-1923.66,0.00019178,2]
[321991069,1712675444420,-550.49876239,0.00019178,2]
[321991071,1712675444429,-2359.31,0.00019178,2]
[321991073,1712675444438,-500.0,0.00019178,2]
[321991075,1712675444448,-500.0,0.00019178,2]
[321991077,1712675444457,-500.0,0.00019178,2]
[321991079,1712675444466,-10332.28,0.00019178,2]
[321991081,1712675444475,-500.0,0.00019178,2]
[321991082,1712675444484,-500.0,0.00019178,2]
[321991085,1712675444494,-2859.52,0.00019178,2]
[321991087,1712675444503,-500.0,0.00019178,2]
[321991088,1712675444512,-470.18211836,0.00019178,2]
[321991090,1712675444521,-500.0,0.00019178,2]
[321991092,1712675444531,-2848.51,0.00019178,2]
[321991094,1712675444541,-846.44,0.00019178,2]
[321991097,1712675444555,-3804.41,0.00019178,2]
[321991099,1712675444563,-500.0,0.00019178,2]
[321991101,1712675444573,-3557.01,0.00019178,2]
[321991103,1712675444582,-557.17,0.00019178,2]
[321991105,1712675444591,-2317.69,0.00019178,2]
[321991107,1712675444600,-7208.0,0.00019178,2]
[321991109,1712675444609,-734.99,0.00019178,2]
[321991111,1712675444618,-510.2822499,0.00019178,2]
[321991113,1712675444627,-1986.32,0.00019178,2]
[321991114,1712675444637,-500.0,0.00019178,2]
[321991116,1712675444646,-1917.08,0.00019178,2]
[321991118,1712675444655,-500.0,0.00019178,2]
[321991120,1712675444664,-933.5,0.00019178,2]
[321991122,1712675444673,-567.99,0.00019178,2]
[321991125,1712675444682,-626.25,0.00019178,2]
[321991127,1712675444691,-4868.84,0.00019178,2]
[321991129,1712675444700,-2524.63,0.00019178,2]
[321991131,1712675444709,-195.46355796,0.00019178,2]
[321991133,1712675444719,-500.0,0.00019178,2]
[321991134,1712675444729,-1794.21,0.00019178,2]
[321991136,1712675444738,-167.07432978,0.00019178,2]
[321991138,1712675444747,-1713.0,0.00019178,2]
[321991140,1712675444756,-928.85,0.00019178,2]
[321991142,1712675444766,-18164.51,0.00019178,2]
[321991144,1712675444775,-500.0,0.00019178,2]
[321991146,1712675444784,-500.0,0.00019178,2]
[321991148,1712675444795,-500.0,0.00019178,2]
[321991150,1712675444804,-1057.5,0.00019178,2]
[321991152,1712675444814,-1078.44,0.00019178,2]
[321991154,1712675444823,-500.0,0.00019178,2]
[321991156,1712675444833,-500.0,0.00019178,2]
[321991158,1712675444842,-1662.24,0.00019178,2]
[321991160,1712675444852,-500.0,0.00019178,2]
[321991162,1712675444861,-828.85,0.00019178,2]
[321991164,1712675444870,-1383.61,0.00019178,2]
[321991166,1712675444880,-500.0,0.00019178,2]
[321991168,1712675444889,-1488.32,0.00019178,2]
[321991170,1712675444899,-733.66,0.00019178,2]
[321991172,1712675444908,-4033.32,0.00019178,2]
[321991174,1712675444917,-558.98,0.00019178,2]
[321991176,1712675444926,-500.0,0.00019178,2]
[321991178,1712675444936,-500.0,0.00019178,2]
[321991180,1712675444945,-913.34,0.00019178,2]
[321991182,1712675444954,-689.72,0.00019178,2]
[321991184,1712675444963,-1248.07,0.00019178,2]
[321991186,1712675444973,-1196.64,0.00019178,2]
[321991188,1712675444982,-5373.42,0.00019178,2]
[321991190,1712675444992,-8430.92,0.00019178,2]
[321991192,1712675445001,-11453.02,0.00019178,2]
[321991194,1712675445011,-1110.62,0.00019178,2]
[321991196,1712675445021,-863.69,0.00019178,2]
[321991198,1712675445031,-500.0,0.00019178,2]
[321991200,1712675445041,-500.0,0.00019178,2]
[321991202,1712675445056,-500.0,0.00019178,2]
[321991204,1712675445067,-500.0,0.00019178,2]
[321991206,1712675445077,-1162.36,0.00019178,2]
[321991208,1712675445087,-500.0,0.00019178,2]
[321991210,1712675445097,-1798.52,0.00019178,2]
[321991212,1712675445107,-1753.46,0.00019178,2]
[321991214,1712675445118,-500.0,0.00019178,2]
[321991216,1712675445128,-1726.06,0.00019178,2]
[321991218,1712675445138,-4570.93,0.00019178,2]
[321991220,1712675445148,-500.0,0.00019178,2]
[321991223,1712675445158,-500.0,0.00019178,2]
[321991224,1712675445168,-500.0,0.00019178,2]
[321991227,1712675445178,-500.0,0.00019178,2]
[321991228,1712675445187,-500.0,0.00019178,2]
[321991231,1712675445197,-500.0,0.00019178,2]
[321991233,1712675445206,-1530.46,0.00019178,2]
[321991235,1712675445216,-500.0,0.00019178,2]
[321991237,1712675445225,-4391.04,0.00019178,2]
[321991239,1712675445238,-500.0,0.00019178,2]
[321991241,1712675445247,-500.0,0.00019178,2]
[321991243,1712675445256,-7587.36,0.00019178,2]
[321991245,1712675445271,-1868.72,0.00019178,2]
[321991247,1712675445281,-500.0,0.00019178,2]
[321991249,1712675445290,-2577.59,0.00019178,2]
[321991251,1712675445308,-500.0,0.00019178,2]
[321991253,1712675445318,-4081.1,0.00019178,2]
[321991255,1712675445327,-500.0,0.00019178,2]
[321991257,1712675445336,-500.0,0.00019178,2]
[321991259,1712675445348,-704.54,0.00019178,2]
[321991287,1712675445606,-2582.33,0.00019178,2]
[321991289,1712675445617,-22824.27119912,0.0001918,2]
[321991291,1712675445627,-160.84,0.0001918,2]
[321991293,1712675445637,-150.0,0.00019199,2]
[321991295,1712675445646,-500.0,0.00019269,2]
[321991297,1712675445657,-500.0,0.00019269,2]
[321991299,1712675445666,-500.0,0.00019269,2]
[321991300,1712675445675,-500.0,0.00019269,2]
[321991301,1712675445684,-500.0,0.00019269,2]
[321991302,1712675445693,-500.0,0.00019269,2]
[321991303,1712675445702,-511.86171558,0.00019269,2]
[321991304,1712675445711,-500.0,0.00019269,2]
[321991305,1712675445721,-500.0,0.00019269,2]
[321991306,1712675445730,-500.0,0.00019269,2]
[321991307,1712675445738,-538.35,0.00019269,2]
[321991308,1712675445748,-500.0,0.00019269,2]
[321991309,1712675445757,-500.0,0.00019269,2]
[321991310,1712675445766,-500.0,0.00019269,2]
[321991311,1712675445775,-500.0,0.00019269,2]
[321991313,1712675445784,-500.0,0.00019269,2]
[321991315,1712675445797,-500.0,0.00019269,2]
[321991317,1712675445806,-500.0,0.00019269,2]
[321991319,1712675445815,-500.0,0.00019269,2]
[321991321,1712675445825,-500.0,0.00019269,2]
[321991324,1712675445835,-500.0,0.00019269,2]
[321991326,1712675445845,-500.0,0.00019269,2]
[321991328,1712675445855,-510.40588441,0.00019269,2]
[321991330,1712675445865,-503.98647397,0.00019269,2]
[321991332,1712675445874,-500.0,0.00019269,2]
[321991333,1712675445883,-500.0,0.00019269,2]
[321991335,1712675445893,-500.0,0.00019269,2]
[321991337,1712675445902,-500.0,0.00019269,2]
[321991340,1712675445912,-500.0,0.00019269,2]
[321991342,1712675445921,-500.0,0.00019269,2]
[321991343,1712675445930,-500.0,0.00019269,2]
[321991346,1712675445940,-500.0,0.00019269,2]
[321991348,1712675445950,-500.0,0.00019269,2]
[321991350,1712675445959,-500.0,0.00019269,2]
[321991351,1712675445968,-430.1990209,0.00019269,2]
[321991353,1712675445978,-500.0,0.00019269,2]
[321991355,1712675445990,-500.0,0.00019269,2]
[321991357,1712675445999,-500.0,0.00019269,2]
[321991359,1712675446009,-500.0,0.00019269,2]
[321991362,1712675446019,-500.0,0.00019269,2]
[321991364,1712675446028,-500.0,0.00019269,2]
[321991366,1712675446038,-500.0,0.00019269,2]
[321991368,1712675446052,-500.0,0.00019269,2]
[321991370,1712675446061,-500.0,0.00019269,2]
[321991372,1712675446070,-883.62,0.00019269,2]
[321991374,1712675446080,-500.0,0.00019269,2]
[321991377,1712675446089,-500.0,0.00019269,2]
[321991380,1712675446099,-500.0,0.00019269,2]
[321991382,1712675446112,-500.0,0.00019269,2]
[321991384,1712675446122,-559.91462116,0.00019269,2]
[321991386,1712675446133,-500.0,0.00019269,2]
[321991388,1712675446144,-500.0,0.00019269,2]
[321991391,1712675446156,-374.59317499,0.00019269,2]
[321991394,1712675446166,-500.0,0.00019269,2]
[321991397,1712675446176,-500.0,0.00019269,2]
[321991399,1712675446186,-500.0,0.00019269,2]
[321991401,1712675446195,-500.0,0.00019269,2]
[321991403,1712675446205,-500.0,0.00019269,2]
[321991405,1712675446215,-500.0,0.00019269,2]
[321991406,1712675446224,-500.0,0.00019269,2]
[321991407,1712675446237,-500.0,0.00019269,2]
[321991408,1712675446247,-500.0,0.00019269,2]
[321991410,1712675446258,-500.0,0.00019269,2]
[321991412,1712675446269,-500.0,0.00019269,2]
[321991414,1712675446280,-500.0,0.00019269,2]
[321991415,1712675446289,-500.0,0.00019269,2]
[321991416,1712675446302,-500.0,0.00019269,2]
[321991417,1712675446311,-500.0,0.00019269,2]
[321991418,1712675446325,-537.84,0.00019269,2]
[321991419,1712675446335,-500.0,0.00019269,2]
[321991420,1712675446345,-500.0,0.00019269,2]
[321991421,1712675446355,-387.35662083,0.00019269,2]
[321991422,1712675446364,-500.0,0.00019269,2]
[321991423,1712675446373,-501.48300233,0.00019269,2]
[321991424,1712675446383,-500.0,0.00019269,2]
[321991425,1712675446393,-500.0,0.00019269,2]
[321991426,1712675446403,-500.0,0.00019269,2]
[321991427,1712675446413,-500.0,0.00019269,2]
[321991428,1712675446423,-500.0,0.00019269,2]
[321991429,1712675446433,-500.0,0.00019269,2]
[321991430,1712675446443,-500.0,0.00019269,2]
[321991431,1712675446454,-500.0,0.00019269,2]
[321991432,1712675446463,-500.0,0.00019269,2]
[321991433,1712675446473,-500.0,0.00019269,2]
[321991434,1712675446483,-500.0,0.00019269,2]
[321991435,1712675446492,-500.0,0.00019269,2]
[321991436,1712675446502,-500.0,0.00019269,2]
[321991437,1712675446511,-500.0,0.00019269,2]
[321991438,1712675446521,-500.0,0.00019269,2]
[321991439,1712675446531,-500.0,0.00019269,2]
[321991440,1712675446541,-500.0,0.00019269,2]
[321991441,1712675446553,-511.80119183,0.00019269,2]
[321991442,1712675446563,-500.0,0.00019269,2]
[321991443,1712675446572,-500.0,0.00019269,2]
[321991444,1712675446582,-500.0,0.00019269,2]
[321991445,1712675446592,-500.0,0.00019269,2]
[321991446,1712675446602,-500.0,0.00019269,2]
[321991447,1712675446612,-500.0,0.00019269,2]
[321991448,1712675446622,-500.0,0.00019269,2]
[321991449,1712675446633,-500.0,0.00019269,2]
[321991450,1712675446644,-500.0,0.00019269,2]
[321991451,1712675446655,-599.557145,0.00019269,2]
[321991452,1712675446666,-500.0,0.00019269,2]
[321991453,1712675446677,-500.0,0.00019269,2]
[321991454,1712675446688,-500.0,0.00019269,2]
[321991455,1712675446699,-500.0,0.00019269,2]
[321991456,1712675446710,-441.76541608,0.00019269,2]
[321991457,1712675446721,-500.0,0.00019269,2]
[321991458,1712675446732,-500.0,0.00019269,2]
[321991459,1712675446742,-517.75102001,0.00019269,2]
[321991460,1712675446753,-500.0,0.00019269,2]
[321991461,1712675446762,-500.0,0.00019269,2]
[321991462,1712675446772,-500.0,0.00019269,2]
[321991463,1712675446781,-528.30198413,0.00019269,2]
[321991464,1712675446791,-500.0,0.00019269,2]
[321991465,1712675446811,-1007.19,0.00019269,2]
[321991466,1712675446822,-500.0,0.00019269,2]
[321991467,1712675446832,-500.0,0.00019269,2]
[321991468,1712675446843,-500.0,0.00019269,2]
[321991469,1712675446855,-634.32,0.00019269,2]
[321991470,1712675446866,-507.73,0.00019269,2]
[321991471,1712675446878,-621.29655208,0.00019269,2]
[321991472,1712675446889,-500.0,0.00019269,2]
[321991473,1712675446900,-500.0,0.00019269,2]
[321991474,1712675446911,-500.0,0.00019269,2]
[321991475,1712675446922,-500.0,0.00019269,2]
[321991476,1712675446933,-500.0,0.00019269,2]
[321991477,1712675446944,-233.07161409,0.00019269,2]
[321991478,1712675446955,-500.0,0.00019269,2]
[321991479,1712675446966,-500.0,0.00019269,2]
[321991480,1712675446977,-500.0,0.00019269,2]
[321991481,1712675446988,-500.0,0.00019269,2]
[321991482,1712675446999,-500.0,0.00019269,2]
[321991483,1712675447010,-637.7,0.00019269,2]
[321991484,1712675447020,-500.0,0.00019269,2]
[321991485,1712675447031,-638.08768016,0.00019269,2]
[321991486,1712675447041,-500.0,0.00019269,2]
[321991487,1712675447060,-500.0,0.00019269,2]
[321991488,1712675447071,-500.0,0.00019269,2]
[321991489,1712675447081,-500.0,0.00019269,2]
[321991490,1712675447091,-509.62,0.00019269,2]
[321991491,1712675447101,-500.0,0.00019269,2]
[321991492,1712675447111,-473.11328709,0.00019269,2]
[321991493,1712675447122,-500.0,0.00019269,2]
[321991494,1712675447132,-551.45921504,0.00019269,2]
[321991495,1712675447142,-500.0,0.00019269,2]
[321991496,1712675447152,-500.0,0.00019269,2]
[321991497,1712675447161,-500.0,0.00019269,2]
[321991498,1712675447171,-517.31136078,0.00019269,2]
[321991499,1712675447181,-500.0,0.00019269,2]
[321991500,1712675447190,-500.0,0.00019269,2]
[321991501,1712675447201,-500.0,0.00019269,2]
[321991502,1712675447211,-500.0,0.00019269,2]
[321991503,1712675447220,-500.0,0.00019269,2]
[321991504,1712675447231,-501.96,0.00019269,2]
[321991505,1712675447242,-500.0,0.00019269,2]
[321991506,1712675447251,-500.0,0.00019269,2]
[321991507,1712675447260,-500.0,0.00019269,2]
[321991508,1712675447270,-500.0,0.00019269,2]
[321991510,1712675447284,-500.0,0.00019269,2]
[321991512,1712675447296,-500.0,0.00019269,2]
[321991514,1712675447308,-500.0,0.00019269,2]
[321991516,1712675447319,-500.0,0.00019269,2]
[321991518,1712675447329,-500.0,0.00019269,2]
[321991520,1712675447338,-500.0,0.00019269,2]
[321991522,1712675447348,-526.8148037,0.00019269,2]
[321991524,1712675447357,-500.0,0.00019269,2]
[321991526,1712675447368,-500.0,0.00019269,2]
[321991528,1712675447378,-514.02253181,0.00019269,2]
[321991529,1712675447389,-521.63522945,0.00019269,2]
[321991530,1712675447399,-505.50191643,0.00019269,2]
[321991531,1712675447408,-511.3758137,0.00019269,2]
[321991533,1712675447418,-500.0,0.00019269,2]
[321991534,1712675447428,-500.0,0.00019269,2]
[321991535,1712675447437,-500.0,0.00019269,2]
[321991536,1712675447447,-469.46511971,0.00019269,2]
[321991537,1712675447457,-507.95863388,0.00019269,2]
[321991538,1712675447466,-500.0,0.00019269,2]
[321991539,1712675447476,-522.71173593,0.00019269,2]
[321991540,1712675447486,-518.78802553,0.00019269,2]
[321991541,1712675447496,-500.0,0.00019269,2]
[321991542,1712675447505,-516.17826373,0.00019269,2]
[321991543,1712675447514,-500.0,0.00019269,2]
[321991544,1712675447523,-513.02524976,0.00019269,2]
[321991545,1712675447533,-500.0,0.00019269,2]
[321991546,1712675447542,-518.78820308,0.00019269,2]
[321991547,1712675447555,-519.50000147,0.00019269,2]
[321991548,1712675447564,-521.26203938,0.00019269,2]
[321991549,1712675447574,-505.61845214,0.00019269,2]
[321991550,1712675447583,-535.49326527,0.00019269,2]
[321991551,1712675447592,-535.57327133,0.00019269,2]
[321991552,1712675447601,-500.0,0.00019269,2]
[321991553,1712675447610,-500.0,0.00019269,2]
[321991554,1712675447620,-500.0,0.00019269,2]
[321991555,1712675447630,-500.0,0.00019269,2]
[321991556,1712675447639,-500.0,0.00019269,2]
[321991557,1712675447649,-511.95327801,0.00019269,2]
[321991558,1712675447659,-517.09923713,0.00019269,2]
[321991559,1712675447668,-500.0,0.00019269,2]
[321991560,1712675447678,-653.61,0.00019269,2]
[321991561,1712675447688,-500.0,0.00019269,2]
[321991562,1712675447698,-500.0,0.00019269,2]
[321991563,1712675447707,-500.0,0.00019269,2]
[321991564,1712675447718,-500.0,0.00019269,2]
[321991565,1712675447729,-500.0,0.00019269,2]
[321991566,1712675447739,-500.0,0.00019269,2]
[321991567,1712675447749,-500.0,0.00019269,2]
[321991568,1712675447760,-500.0,0.00019269,2]
[321991569,1712675447772,-500.0,0.00019269,2]
[321991570,1712675447785,-500.0,0.00019269,2]
[321991571,1712675447799,-500.0,0.00019269,2]
[321991572,1712675447811,-500.0,0.00019269,2]
[321991573,1712675447822,-444.19174776,0.0001927,2]
[321991574,1712675447835,-500.0,0.00019271,2]
[321991575,1712675447847,-500.0,0.00019271,2]
[321991576,1712675447859,-506.82762085,0.00019271,2]
[321991577,1712675447871,-500.0,0.00019271,2]
[321991578,1712675447884,-500.0,0.00019271,2]
[321991579,1712675447895,-501.71097096,0.00019271,2]
[321991580,1712675447906,-870.01,0.00019271,2]
[321991581,1712675447917,-1068.03,0.00019271,2]
[321991582,1712675447927,-500.0,0.00019271,2]
[321991583,1712675447938,-794.32,0.00019271,2]
[321991584,1712675447949,-561.23,0.00019271,2]
[321991585,1712675447959,-1098.95,0.00019271,2]
[321991586,1712675447970,-813.86,0.00019271,2]
[321991587,1712675447981,-597.11,0.00019271,2]
[321991588,1712675447991,-762.06,0.00019271,2]
[321991589,1712675448001,-795.9,0.00019271,2]
[321991590,1712675448012,-505.32,0.00019271,2]
[321991591,1712675448023,-1248.23,0.00019271,2]
[321991592,1712675448034,-500.0,0.00019271,2]
[321991593,1712675448047,-500.0,0.00019271,2]
[321991594,1712675448061,-500.0,0.00019271,2]
[321991595,1712675448072,-500.0,0.00019271,2]
[321991596,1712675448083,-500.0,0.00019271,2]
[321991597,1712675448095,-577.69,0.00019271,2]
[321991598,1712675448104,-500.0,0.00019271,2]
[321991599,1712675448114,-500.0,0.00019271,2]
[321991600,1712675448123,-675.95,0.00019271,2]
[321991601,1712675448133,-500.0,0.00019271,2]
[321991602,1712675448143,-1174.93,0.00019271,2]
[321991603,1712675448153,-1021.94,0.00019271,2]
[321991604,1712675448164,-500.0,0.00019271,2]
[321991605,1712675448174,-728.71,0.00019271,2]
[321991606,1712675448184,-500.0,0.00019271,2]
[321991607,1712675448195,-524.39,0.00019271,2]
[321991608,1712675448205,-711.1,0.00019271,2]
[321991609,1712675448216,-784.53,0.00019271,2]
[321991610,1712675448227,-500.0,0.00019271,2]
[321991611,1712675448240,-500.0,0.00019271,2]
[321991612,1712675448250,-500.0,0.00019271,2]
[321991613,1712675448260,-623.09,0.00019271,2]
[321991614,1712675448270,-500.0,0.00019271,2]
[321991615,1712675448286,-821.8,0.00019271,2]
[321991616,1712675448302,-1226.71,0.00019271,2]
[321991617,1712675448318,-576.22,0.00019271,2]
[321991618,1712675448329,-839.19,0.00019271,2]
[321991619,1712675448342,-739.95,0.00019271,2]
[321991620,1712675448354,-500.0,0.00019271,2]
[321991621,1712675448366,-571.55,0.00019271,2]
[321991622,1712675448377,-1083.7,0.00019271,2]
[321991623,1712675448388,-500.0,0.00019271,2]
[321991624,1712675448400,-500.0,0.00019271,2]
[321991625,1712675448411,-628.35,0.00019271,2]
[321991626,1712675448421,-500.0,0.00019271,2]
[321991627,1712675448432,-637.35,0.00019271,2]
[321991628,1712675448443,-500.0,0.00019271,2]
[321991629,1712675448455,-500.0,0.00019271,2]
[321991630,1712675448467,-500.0,0.00019271,2]
[321991631,1712675448478,-500.0,0.00019271,2]
[321991632,1712675448488,-358.644277,0.00019272,2]
[321991633,1712675448502,-500.0,0.00019272,2]
[321991634,1712675448515,-736.85,0.00019272,2]
[321991635,1712675448525,-500.0,0.00019272,2]
[321991636,1712675448536,-500.0,0.00019272,2]
[321991637,1712675448552,-664.47,0.00019272,2]
[321991638,1712675448562,-637.78,0.00019272,2]
[321991639,1712675448572,-500.0,0.00019272,2]
[321991640,1712675448582,-500.0,0.00019272,2]
[321991641,1712675448592,-629.97,0.00019272,2]
[321991642,1712675448603,-586.78,0.00019272,2]
[321991643,1712675448614,-500.0,0.00019272,2]
[321991644,1712675448625,-500.0,0.00019272,2]
[321991645,1712675448635,-532.64,0.00019272,2]
[321991646,1712675448645,-748.51,0.00019272,2]
[321991647,1712675448655,-612.72,0.00019272,2]
[321991648,1712675448665,-913.1,0.00019272,2]
[321991649,1712675448675,-3906.46814454,0.00019313,2]
[321991650,1712675448686,-191.01064538,0.00019329,2]
[321991651,1712675448695,-22824.27119912,0.00019395,2]
[321991652,1712675448706,-796.42,0.00019452,2]
[321991653,1712675448717,-635.64,0.00019452,2]
[321991654,1712675448727,-508.37,0.00019452,2]
[321991655,1712675448738,-500.0,0.00019452,2]
[321991656,1712675448748,-500.0,0.00019452,2]
[321991657,1712675448758,-500.0,0.00019452,2]
[321991658,1712675448768,-500.0,0.00019452,2]
[321991659,1712675448779,-500.0,0.00019452,2]
[321991660,1712675448790,-545.67084968,0.00019452,2]
[321991661,1712675448807,-637.93,0.00019452,2]
[321991662,1712675448817,-500.0,0.00019452,2]
[321991663,1712675448829,-500.0,0.00019452,2]
[321991664,1712675448840,-500.0,0.00019452,2]
[321991665,1712675448850,-500.0,0.00019452,2]
[321991666,1712675448863,-694.7,0.00019452,2]
[321991667,1712675448874,-500.0,0.00019452,2]
[321991668,1712675448884,-556.79,0.00019452,2]
[321991669,1712675448894,-500.0,0.00019452,2]
[321991670,1712675448905,-704.4,0.00019452,2]
[321991671,1712675448916,-500.0,0.00019452,2]
[321991672,1712675448926,-500.0,0.00019452,2]
[321991673,1712675448937,-500.0,0.00019452,2]
[321991674,1712675448948,-500.0,0.00019452,2]
[321991675,1712675448958,-500.0,0.00019452,2]
[321991676,1712675448969,-500.0,0.00019452,2]
[321991677,1712675448979,-500.0,0.00019452,2]
[321991678,1712675448989,-500.0,0.00019452,2]
[321991679,1712675448999,-544.04,0.00019452,2]
[321991680,1712675449010,-500.0,0.00019452,2]
[321991681,1712675449020,-500.0,0.00019452,2]
[321991682,1712675449030,-500.0,0.00019452,2]
[321991683,1712675449039,-595.51,0.00019452,2]
[321991684,1712675449052,-500.0,0.00019452,2]
[321991685,1712675449062,-500.0,0.00019452,2]
[321991686,1712675449071,-500.0,0.00019452,2]
[321991687,1712675449081,-500.0,0.00019452,2]
[321991688,1712675449091,-500.0,0.00019452,2]
[321991689,1712675449100,-500.0,0.00019452,2]
[321991690,1712675449109,-656.73,0.00019452,2]
[321991691,1712675449119,-500.0,0.00019452,2]
[321991692,1712675449129,-534.98,0.00019452,2]
[321991693,1712675449138,-636.93,0.00019452,2]
[321991694,1712675449148,-500.0,0.00019452,2]
[321991695,1712675449158,-500.0,0.00019452,2]
[321991696,1712675449167,-500.0,0.00019452,2]
[321991697,1712675449178,-500.0,0.00019452,2]
[321991698,1712675449188,-330.14727315,0.00019452,2]
[321991699,1712675449198,-500.0,0.00019452,2]
[321991700,1712675449207,-500.0,0.00019452,2]
[321991701,1712675449217,-699.79,0.00019452,2]
[321991702,1712675449228,-500.0,0.00019452,2]
[321991703,1712675449239,-500.0,0.00019452,2]
[321991704,1712675449254,-500.0,0.00019452,2]
[321991705,1712675449265,-500.0,0.00019452,2]
[321991706,1712675449274,-500.0,0.00019452,2]
[321991707,1712675449289,-573.36,0.00019452,2]
[321991708,1712675449305,-500.0,0.00019452,2]
[321991709,1712675449315,-500.0,0.00019452,2]
[321991710,1712675449326,-754.07,0.00019452,2]
[321991711,1712675449336,-500.0,0.00019452,2]
[321991712,1712675449345,-500.0,0.00019452,2]
[321991713,1712675449355,-500.0,0.00019452,2]
[321991714,1712675449364,-500.0,0.00019452,2]
[321991715,1712675449374,-500.0,0.00019452,2]
[321991716,1712675449384,-500.0,0.00019452,2]
[321991717,1712675449393,-500.0,0.00019452,2]
[321991718,1712675449402,-500.0,0.00019452,2]
[321991719,1712675449413,-519.45,0.00019452,2]
[321991720,1712675449422,-500.0,0.00019452,2]
[321991721,1712675449432,-500.0,0.00019452,2]
[321991722,1712675449442,-543.63,0.00019452,2]
[321991723,1712675449452,-500.0,0.00019452,2]
[321991724,1712675449462,-685.15,0.00019452,2]
[321991725,1712675449472,-414.21722316,0.00019452,2]
[321991726,1712675449481,-500.0,0.00019452,2]
[321991727,1712675449491,-500.0,0.00019452,2]
[321991728,1712675449500,-513.96,0.00019452,2]
[321991729,1712675449510,-598.43,0.00019452,2]
[321991730,1712675449519,-500.0,0.00019452,2]
[321991731,1712675449529,-526.97,0.00019452,2]
[321991732,1712675449539,-1099.74,0.00019452,2]
[321991733,1712675449553,-541.5992731,0.00019452,2]
[321991734,1712675449563,-150.0,0.00019452,2]
[321991735,1712675449573,-617.84,0.00019452,2]
[321991736,1712675449584,-500.0,0.00019452,2]
[321991737,1712675449594,-500.0,0.00019452,2]
[321991738,1712675449603,-500.0,0.00019452,2]
[321991739,1712675449613,-537.97,0.00019452,2]
[321991740,1712675449623,-500.0,0.00019452,2]
[321991741,1712675449632,-500.0,0.00019452,2]
[321991742,1712675449642,-500.0,0.00019452,2]
[321991743,1712675449651,-500.0,0.00019452,2]
[321991744,1712675449661,-500.0,0.00019452,2]
[321991745,1712675449670,-504.71,0.00019452,2]
[321991746,1712675449680,-500.0,0.00019452,2]
[321991747,1712675449689,-888.13,0.00019452,2]
[321991748,1712675449699,-1499.61,0.00019452,2]
[321991749,1712675449708,-500.0,0.00019452,2]
[321991750,1712675449718,-500.0,0.00019452,2]
[321991751,1712675449727,-500.0,0.00019452,2]